fUST/lending_fUST_20250901
["ID","MTS","AMOUNT","RATE_DAILY","PERIOD"]
[382627285,1756685452780,-159.342596,0.00016438,2]
[382627286,1756685452790,-159.342596,0.00016438,2]
[382627287,1756685452800,-159.342596,0.00016438,2]
[382627288,1756685452810,-159.342596,0.00016438,2]
[382627289,1756685452819,-159.342596,0.00016438,2]
[382627290,1756685452829,-159.342596,0.00016438,2]
[382627291,1756685452839,-159.342596,0.00016438,2]
[382627292,1756685452848,-159.342596,0.00016438,2]
[382627293,1756685452858,-159.342596,0.00016438,2]
[382627294,1756685452868,-159.342596,0.00016438,2]
[382627295,1756685452878,-151.0,0.00016438,2]
[382627296,1756685452888,-151.0,0.00016438,2]
[382627297,1756685452898,-151.0,0.00016438,2]
[382627298,1756685452908,-151.0,0.00016438,2]
[382627299,1756685452920,-200.0,0.00016438,3]
[382627300,1756685452930,-200.0,0.00016438,3]
[382627301,1756685452940,-200.0,0.00016438,3]
[382627302,1756685452950,-200.0,0.00016438,3]
[382627303,1756685452960,-200.0,0.00016438,3]
[382627304,1756685452970,-151.0,0.00016438,2]
[382627305,1756685452980,-151.0,0.00016438,2]
[382627306,1756685452991,-151.0,0.00016438,2]
[382627307,1756685453001,-151.0,0.00016438,2]
[382627308,1756685453011,-151.0,0.00016438,2]
[382627309,1756685453021,-151.0,0.00016438,2]
[382627310,1756685453031,-152.778142,0.00016438,2]
[382627311,1756685453041,-151.0,0.00016438,2]
[382627312,1756685453050,-151.0,0.00016438,2]
[382627313,1756685453060,-151.0,0.00016438,2]
[382627314,1756685453070,-151.0,0.00016438,2]
[382627315,1756685453079,-151.0,0.00016438,2]
[382627316,1756685453089,-155.599794,0.00016438,2]
[382627317,1756685453099,-151.0,0.00016438,2]
[382627318,1756685453110,-151.0,0.00016438,2]
[382627319,1756685453124,-151.0,0.00016438,2]
[382627320,1756685453135,-151.0,0.00016438,2]
[382627321,1756685453144,-151.0,0.00016438,2]
[382627322,1756685453155,-151.0,0.00016438,2]
[382627323,1756685453166,-151.0,0.00016438,2]
[382627324,1756685453176,-151.0,0.00016438,2]
[382627325,1756685453186,-151.0,0.00016438,2]
[382627326,1756685453195,-151.0,0.00016438,2]
[382627327,1756685453205,-151.0,0.00016438,2]
[382627328,1756685453215,-151.0,0.00016438,2]
[382627329,1756685453224,-151.0,0.00016438,2]
[382627330,1756685453234,-152.0,0.00016438,2]
[382627331,1756685453244,-159.827494,0.00016438,2]
[382627332,1756685453254,-159.827494,0.00016438,2]
[382627333,1756685453264,-159.827494,0.00016438,2]
[382627334,1756685453274,-159.827494,0.00016438,2]
[382627335,1756685453284,-159.827494,0.00016438,2]
[382627336,1756685453293,-159.827494,0.00016438,2]
[382627337,1756685453303,-159.827494,0.00016438,2]
[382627338,1756685453313,-159.827494,0.00016438,2]
[382627339,1756685453323,-159.827494,0.00016438,2]
[382627340,1756685453333,-159.827494,0.00016438,2]
[382627341,1756685453343,-159.827494,0.00016438,2]
[382627342,1756685453352,-159.827494,0.00016438,2]
[382627343,1756685453362,-159.827494,0.00016438,2]
[382627344,1756685453372,-159.827494,0.00016438,2]
[382627345,1756685453382,-159.827494,0.00016438,2]
[382627346,1756685453392,-151.0,0.00016438,2]
[382627347,1756685453403,-159.827494,0.00016438,2]
[382627348,1756685453413,-222.837283,0.00016438,2]
[382627349,1756685453423,-159.827494,0.00016438,2]
[382627350,1756685453433,-159.827494,0.00016438,2]
[382627351,1756685453443,-159.827494,0.00016438,2]
[382627352,1756685453453,-159.827502,0.00016438,2]
[382627353,1756685453465,-151.000001,0.00016438,2]
[382627354,1756685453475,-151.0,0.00016438,2]
[382627355,1756685453485,-169.664587,0.00016438,2]
[382627356,1756685453496,-151.0,0.00016438,2]
[382627357,1756685453505,-151.0,0.00016438,2]
[382627358,1756685453515,-151.0,0.00016438,2]
[382627359,1756685453525,-201.455727,0.00016438,2]
[382627360,1756685453536,-151.0,0.00016438,2]
[382627361,1756685453546,-151.0,0.00016438,2]
[382627362,1756685453555,-151.0,0.00016438,2]
[382627363,1756685453565,-151.0,0.00016438,2]
[382627364,1756685453575,-151.0,0.00016438,2]
[382627365,1756685453584,-151.0,0.00016438,2]
[382627366,1756685453594,-151.0,0.00016438,2]
[382627367,1756685453603,-226.906472,0.00016438,2]
[382627368,1756685453613,-151.0,0.00016438,2]
[382627369,1756685453623,-151.0,0.00016438,2]
[382627370,1756685453633,-151.0,0.00016438,2]
[382627371,1756685453642,-151.0,0.00016438,2]
[382627372,1756685453653,-151.0,0.00016438,2]
[382627373,1756685453663,-151.0,0.00016438,2]
[382627374,1756685453672,-151.0,0.00016438,2]
[382627375,1756685453682,-176.48709,0.00016438,2]
[382627376,1756685453692,-151.0,0.00016438,2]
[382627377,1756685453701,-174.328887,0.00016438,2]
[382627378,1756685453711,-151.0,0.00016438,2]
[382627379,1756685453722,-151.0,0.00016438,2]
[382627380,1756685453732,-151.0,0.00016438,2]
[382627381,1756685453742,-151.0,0.00016438,2]
[382627382,1756685453752,-276.287085,0.00016438,2]
[382627383,1756685453761,-276.287085,0.00016438,2]
[382627384,1756685453771,-276.287085,0.00016438,2]
[382627385,1756685453781,-276.287085,0.00016438,2]
[382627386,1756685453791,-276.287085,0.00016438,2]
[382627387,1756685453801,-276.287085,0.00016438,2]
[382627388,1756685453811,-276.287085,0.00016438,2]
[382627389,1756685453980,-276.287085,0.00016438,2]
[382627390,1756685453990,-276.287085,0.00016438,2]
[382627391,1756685453999,-276.287085,0.00016438,2]
[382627392,1756685454009,-276.287085,0.00016438,2]
[382627393,1756685454019,-276.287085,0.00016438,2]
[382627394,1756685454028,-276.287085,0.00016438,2]
[382627395,1756685454038,-276.287085,0.00016438,2]
[382627396,1756685454047,-276.287085,0.00016438,2]
[382627397,1756685454057,-276.287085,0.00016438,2]
[382627398,1756685454066,-276.287085,0.00016438,2]
[382627399,1756685454076,-276.287085,0.00016438,2]
[382627400,1756685454086,-276.287085,0.00016438,2]
[382627401,1756685454095,-276.287077,0.00016438,2]
[382627402,1756685454105,-151.0,0.00016438,2]
[382627403,1756685454116,-151.0,0.00016438,2]
[382627404,1756685454127,-151.0,0.00016438,2]
[382627405,1756685454136,-151.0,0.00016438,2]
[382627406,1756685454146,-151.0,0.00016438,2]
[382627407,1756685454156,-151.0,0.00016438,2]
[382627408,1756685454167,-295.25533,0.00016438,2]
[382627409,1756685454177,-287.782845,0.00016438,2]
[382627410,1756685454187,-151.0,0.00016438,2]
[382627411,1756685454197,-151.0,0.00016438,2]
[382627412,1756685454207,-151.0,0.00016438,2]
[382627413,1756685454223,-151.0,0.00016438,2]
[382627414,1756685454235,-151.0,0.00016438,2]
[382627415,1756685454244,-151.0,0.00016438,2]
[382627416,1756685454254,-151.0,0.00016438,2]
[382627417,1756685454264,-151.0,0.00016438,2]
[382627418,1756685454273,-158.813232,0.00016438,2]
[382627419,1756685454282,-151.0,0.00016438,2]
[382627420,1756685454291,-151.0,0.00016438,2]
[382627421,1756685454301,-151.0,0.00016438,2]
[382627422,1756685454310,-151.0,0.00016438,2]
[382627423,1756685454319,-151.0,0.00016438,2]
[382627424,1756685454329,-154.702727,0.00016438,2]
[382627425,1756685454338,-151.0,0.00016438,2]
[382627426,1756685454348,-151.0,0.00016438,2]
[382627427,1756685454358,-151.0,0.00016438,2]
[382627428,1756685454367,-151.0,0.00016438,2]
[382627429,1756685454377,-151.0,0.00016438,2]
[382627430,1756685454387,-151.0,0.00016438,2]
[382627431,1756685454396,-151.0,0.00016438,2]
[382627432,1756685454406,-151.0,0.00016438,2]
[382627433,1756685454418,-151.0,0.00016438,2]
[382627434,1756685454427,-151.0,0.00016438,2]
[382627435,1756685454437,-151.0,0.00016438,2]
[382627436,1756685454447,-279.423575,0.00016438,2]
[382627437,1756685454456,-151.0,0.00016438,2]
[382627438,1756685454466,-151.0,0.00016438,2]
[382627439,1756685454475,-151.0,0.00016438,2]
[382627440,1756685454485,-151.0,0.00016438,2]
[382627441,1756685454495,-274.933796,0.00016438,2]
[382627442,1756685454505,-151.0,0.00016438,2]
[382627443,1756685454515,-274.933796,0.00016438,2]
[382627444,1756685454525,-151.0,0.00016438,2]
[382627445,1756685454535,-274.933796,0.00016438,2]
[382627446,1756685454544,-274.933796,0.00016438,2]
[382627447,1756685454554,-274.933796,0.00016438,2]
[382627448,1756685454564,-151.0,0.00016438,2]
[382627449,1756685454574,-274.933796,0.00016438,2]
[382627450,1756685454585,-151.0,0.00016438,2]
[382627451,1756685454594,-274.933796,0.00016438,2]
[382627452,1756685454604,-284.048892,0.00016438,2]
[382627453,1756685454614,-274.933796,0.00016438,2]
[382627454,1756685454623,-274.933796,0.00016438,2]
[382627455,1756685454633,-274.933796,0.00016438,2]
[382627456,1756685454643,-274.933796,0.00016438,2]
[382627457,1756685454652,-274.933796,0.00016438,2]
[382627458,1756685454662,-274.933796,0.00016438,2]
[382627459,1756685454672,-274.933796,0.00016438,2]
[382627460,1756685454682,-274.933796,0.00016438,2]
[382627461,1756685454692,-274.933796,0.00016438,2]
[382627462,1756685454702,-274.933796,0.00016438,2]
[382627463,1756685454713,-2532.10746573,0.00016443,2]
[382627464,1756685454724,-379.0,0.00016449,2]
[382627465,1756685454735,-3791.0,0.00016449,2]
[382627466,1756685454745,-520.00015841,0.00016457,2]
[382627467,1756685454755,-480.0,0.00016457,2]
[382627468,1756685454764,-480.0,0.00016457,2]
[382627469,1756685454774,-659.74,0.00016457,2]
[382627470,1756685454784,-480.0,0.00016457,2]
[382627471,1756685454795,-608.44,0.00016457,2]
[382627472,1756685454804,-599.00710125,0.00016457,2]
[382627473,1756685454814,-555.45,0.00016457,2]
[382627474,1756685454823,-480.0,0.00016457,2]
[382627475,1756685454833,-554.21,0.00016457,2]
[382627476,1756685454843,-379.0,0.00016471,2]
[382627477,1756685454853,-151.0,0.000165,2]
[382627478,1756685454863,-151.0,0.000165,2]
[382627479,1756685454873,-151.0,0.000165,2]
[382627480,1756685454883,-151.0,0.000165,2]
[382627481,1756685454894,-151.0,0.000165,2]
[382627482,1756685454903,-151.0,0.000165,2]
[382627483,1756685454913,-379.0,0.00016502,2]
[382627484,1756685454923,-151.0,0.00016502,2]
[382627485,1756685454933,-239.35076144,0.00016502,2]
[382627486,1756685454942,-151.0,0.00016502,2]
[382627487,1756685454952,-151.0,0.00016502,2]
[382627488,1756685454961,-151.0,0.00016502,2]
[382627489,1756685454971,-174.4167197,0.00016526,2]
[382627490,1756685454980,-646.65231199,0.00016566,2]
[382627491,1756685454990,-151.0,0.000166,2]
[382627492,1756685455000,-151.0,0.000166,2]
[382627493,1756685455009,-151.0,0.000166,2]
[382627494,1756685455019,-151.0,0.000166,2]
[382627495,1756685455030,-151.0,0.000166,2]
[382627496,1756685455040,-151.0,0.000166,2]
[382627497,1756685455050,-480.0,0.00016618,2]
[382627498,1756685455060,-480.0,0.00016618,2]
[382627499,1756685455071,-1389.98,0.00016618,2]
[382627500,1756685455082,-497.13,0.00016618,2]
[382627501,1756685455094,-500.0,0.00016619,2]
[382627502,1756685455104,-500.0,0.00016619,2]
[382627503,1756685455117,-297.23138855,0.00016619,2]
[382627504,1756685455127,-151.0,0.00016619,2]
[382627505,1756685455137,-500.0,0.00016619,2]
[382627506,1756685455147,-1558.0,0.00016619,2]
[382627507,1756685455158,-885.05,0.00016619,2]
[382627508,1756685455168,-480.0,0.00016619,2]
[382627509,1756685455178,-480.0,0.00016619,2]
[382627510,1756685455189,-480.0,0.00016619,2]
[382627511,1756685455199,-519.91,0.00016619,2]
[382627512,1756685455209,-480.0,0.00016619,2]
[382627513,1756685455219,-480.0,0.00016619,2]
[382627514,1756685455228,-1438.66,0.00016619,2]
[382627515,1756685455238,-480.0,0.00016619,2]
[382627516,1756685455248,-480.0,0.00016619,2]
[382627517,1756685455258,-480.0,0.00016619,2]
[382627518,1756685455267,-480.0,0.00016619,2]
[382627519,1756685455277,-480.0,0.00016619,2]
[382627520,1756685455286,-480.0,0.00016619,2]
[382627521,1756685455296,-480.0,0.00016619,2]
[382627522,1756685455306,-850.95,0.00016619,2]
[382627523,1756685455316,-480.0,0.00016619,2]
[382627524,1756685455325,-480.0,0.00016619,2]
[382627525,1756685455335,-554.74,0.00016619,2]
[382627526,1756685455344,-1012.94,0.00016619,2]
[382627527,1756685455354,-996.37,0.00016619,2]
[382627528,1756685455364,-611.41,0.00016619,2]
[382627529,1756685455375,-769.55,0.00016619,2]
[382627530,1756685455385,-480.0,0.00016619,2]
[382627531,1756685455395,-480.0,0.00016619,2]
[382627532,1756685455404,-646.08,0.00016619,2]
[382627533,1756685455414,-480.0,0.00016619,2]
[382627534,1756685455424,-480.0,0.00016619,2]
[382627535,1756685455433,-480.0,0.00016619,2]
[382627536,1756685455444,-500.0,0.00016619,2]
[382627537,1756685455454,-480.0,0.00016619,2]
[382627538,1756685455463,-2266.81,0.00016619,2]
[382627539,1756685455473,-480.0,0.00016619,2]
[382627540,1756685455482,-480.0,0.00016619,2]
[382627541,1756685455492,-480.0,0.00016619,2]
[382627542,1756685455501,-480.0,0.00016619,2]
[382627543,1756685455511,-480.0,0.00016619,2]
[382627544,1756685455520,-1900.15,0.00016619,2]
[382627545,1756685455530,-480.0,0.00016619,2]
[382627546,1756685455539,-723.98,0.00016619,2]
[382627547,1756685455549,-480.0,0.00016619,2]
[382627548,1756685455558,-480.0,0.00016619,2]
[382627549,1756685455567,-480.0,0.00016619,2]
[382627550,1756685455577,-480.0,0.00016619,2]
[382627551,1756685455588,-911.84,0.00016619,2]
[382627552,1756685455597,-480.0,0.00016619,2]
[382627553,1756685455606,-480.0,0.00016619,2]
[382627554,1756685455616,-480.0,0.00016619,2]
[382627555,1756685455626,-480.0,0.00016619,2]
[382627556,1756685455635,-1216.79,0.00016619,2]
[382627557,1756685455644,-881.69,0.00016619,2]
[382627558,1756685455655,-568.19,0.00016619,2]
[382627559,1756685455666,-480.0,0.00016619,2]
[382627560,1756685455675,-480.0,0.00016619,2]
[382627561,1756685455684,-676.47,0.00016619,2]
[382627562,1756685455694,-480.0,0.00016619,2]
[382627563,1756685455703,-774.18,0.00016619,2]
[382627564,1756685455713,-741.99,0.00016619,2]
[382627565,1756685455723,-480.0,0.00016619,2]
[382627566,1756685455732,-615.93,0.00016619,2]
[382627567,1756685455742,-480.0,0.00016619,2]
[382627568,1756685455752,-480.0,0.00016619,2]
[382627569,1756685455762,-716.24,0.00016619,2]
[382627570,1756685455771,-480.0,0.00016619,2]
[382627571,1756685455780,-543.8,0.00016619,2]
[382627572,1756685455790,-876.78,0.00016619,2]
[382627573,1756685455801,-614.93,0.00016619,2]
[382627574,1756685455811,-584.44,0.00016619,2]
[382627575,1756685455821,-480.0,0.00016619,2]
[382627576,1756685455831,-887.99,0.00016619,2]
[382627577,1756685455843,-480.0,0.00016619,2]
[382627578,1756685455853,-597.14,0.00016619,2]
[382627579,1756685455863,-2635.98,0.00016619,2]
[382627580,1756685455873,-573.45,0.00016619,2]
[382627581,1756685455883,-480.0,0.00016619,2]
[382627582,1756685455894,-1116.49,0.00016619,2]
[382627583,1756685455903,-480.0,0.00016619,2]
[382627584,1756685455913,-664.8,0.00016619,2]
[382627585,1756685455923,-694.5,0.00016619,2]
[382627586,1756685455933,-480.0,0.00016619,2]
[382627587,1756685455943,-480.0,0.00016619,2]
[382627588,1756685455952,-480.0,0.00016619,2]
[382627589,1756685455962,-480.0,0.00016619,2]
[382627590,1756685455973,-921.14,0.00016619,2]
[382627591,1756685455983,-480.0,0.00016619,2]
[382627592,1756685455994,-480.0,0.00016619,2]
[382627593,1756685456004,-1222.66,0.00016619,2]
[382627594,1756685456014,-480.0,0.00016619,2]
[382627595,1756685456025,-480.0,0.00016619,2]
[382627596,1756685456037,-500.0,0.0001662,2]
[382627597,1756685456046,-500.0,0.0001662,2]
[382627598,1756685456056,-969.91,0.0001662,2]
[382627599,1756685456066,-775.13,0.0001662,2]
[382627600,1756685456077,-480.0,0.0001662,2]
[382627601,1756685456087,-850.26,0.0001662,2]
[382627602,1756685456097,-551.11,0.0001662,2]
[382627603,1756685456107,-480.0,0.0001662,2]
[382627604,1756685456121,-638.96,0.0001662,2]
[382627605,1756685456130,-480.0,0.0001662,2]
[382627606,1756685456140,-1398.06,0.0001662,2]
[382627607,1756685456149,-480.0,0.0001662,2]
[382627608,1756685456159,-492.35,0.0001662,2]
[382627609,1756685456170,-480.0,0.0001662,2]
[382627610,1756685456181,-1105.97,0.0001662,2]
[382627611,1756685456192,-480.0,0.0001662,2]
[382627612,1756685456201,-1220.76,0.0001662,2]
[382627613,1756685456211,-480.0,0.0001662,2]
[382627614,1756685456221,-5843.93,0.0001662,2]
[382627615,1756685456231,-480.0,0.0001662,2]
[382627616,1756685456240,-636.5,0.0001662,2]
[382627617,1756685456250,-2282.02,0.0001662,2]
[382627618,1756685456259,-1269.57,0.0001662,2]
[382627619,1756685456269,-907.91,0.0001662,2]
[382627620,1756685456279,-480.0,0.0001662,2]
[382627621,1756685456290,-1369.06,0.0001662,2]
[382627622,1756685456346,-3449.42,0.0001662,2]
[382627623,1756685456355,-2416.24,0.0001662,2]
[382627624,1756685456365,-480.0,0.0001662,2]
[382627625,1756685456374,-1229.21,0.0001662,2]
[382627626,1756685456384,-739.95,0.0001662,2]
[382627627,1756685456393,-500.0,0.00016625,2]
[382627628,1756685456403,-480.0,0.00016626,2]
[382627629,1756685456412,-480.0,0.00016626,2]
[382627630,1756685456422,-480.0,0.00016626,2]
[382627631,1756685456432,-480.0,0.00016626,2]
[382627632,1756685456442,-574.12,0.00016626,2]
[382627633,1756685456452,-480.0,0.00016626,2]
[382627634,1756685456461,-480.0,0.00016626,2]
[382627635,1756685456470,-480.0,0.00016626,2]
[382627636,1756685456480,-1093.38,0.00016626,2]
[382627637,1756685456490,-480.0,0.00016626,2]
[382627638,1756685456499,-480.0,0.00016626,2]
[382627639,1756685456509,-929.21,0.00016626,2]
[382627640,1756685456519,-480.0,0.00016626,2]
[382627641,1756685456528,-402.21,0.00016626,2]
[382627642,1756685456538,-480.0,0.00016626,2]
[382627643,1756685456547,-480.0,0.00016626,2]
[382627644,1756685456557,-480.0,0.00016626,2]
[382627645,1756685456566,-480.0,0.00016626,2]
[382627646,1756685456577,-1363.69,0.00016626,2]
[382627647,1756685456587,-554.9,0.00016626,2]
[382627648,1756685456596,-480.0,0.00016626,2]
[382627649,1756685456607,-480.0,0.00016626,2]
[382627650,1756685456616,-1275.66,0.00016626,2]
[382627651,1756685456626,-480.0,0.00016626,2]
[382627652,1756685456638,-751.92,0.00016626,2]
[382627653,1756685456648,-780.61,0.00016626,2]
[382627654,1756685456659,-480.0,0.00016626,2]
[382627655,1756685456671,-607.72,0.00016626,2]
[382627656,1756685456680,-480.0,0.00016626,2]
[382627657,1756685456690,-724.68,0.00016626,2]
[382627658,1756685456700,-480.0,0.00016626,2]
[382627659,1756685456709,-880.63,0.00016626,2]
[382627660,1756685456719,-480.0,0.00016626,2]
[382627661,1756685456729,-555.01,0.00016626,2]
[382627662,1756685456740,-944.64,0.00016626,2]
[382627663,1756685456750,-1089.55,0.00016626,2]
[382627664,1756685456759,-1032.94,0.00016626,2]
[382627665,1756685456768,-1052.92,0.00016626,2]
[382627666,1756685456778,-690.02,0.00016626,2]
[382627667,1756685456790,-4102.3,0.00016626,2]
[382627668,1756685456800,-1091.9,0.00016626,2]
[382627669,1756685456809,-480.0,0.00016626,2]
[382627670,1756685456819,-1632.11,0.00016626,2]
[382627671,1756685456828,-480.0,0.00016626,2]
[382627672,1756685456837,-480.0,0.00016626,2]
[382627673,1756685456846,-6195.31,0.00016626,2]
[382627674,1756685456857,-1247.77,0.00016626,2]
[382627675,1756685456867,-933.86,0.00016626,2]
[382627676,1756685456877,-1011.81,0.00016626,2]
[382627677,1756685456886,-1400.63,0.00016626,2]
[382627678,1756685456896,-1343.04,0.00016626,2]
[382627679,1756685456906,-5724.9,0.00016626,2]
[382627680,1756685456915,-276.34246342,0.00016627,2]
[382627681,1756685456924,-500.0,0.00016627,2]
[382627682,1756685456934,-151.0,0.00016627,2]
[382627683,1756685456944,-151.0,0.00016627,2]
[382627684,1756685456953,-1391.2,0.00016627,2]
[382627685,1756685456963,-647.42,0.00016627,2]
[382627686,1756685456972,-480.0,0.00016628,2]
[382627687,1756685456981,-480.0,0.00016628,2]
[382627688,1756685456991,-480.0,0.00016628,2]
[382627689,1756685457000,-480.0,0.00016628,2]
[382627690,1756685457009,-480.0,0.00016628,2]
[382627691,1756685457019,-480.0,0.00016628,2]
[382627692,1756685457028,-321.45943857,0.00016628,2]
[382627693,1756685457038,-480.0,0.00016628,2]
[382627694,1756685457048,-1089.02,0.00016628,2]
[382627695,1756685457057,-526.1284565,0.00016628,2]
[382627696,1756685457067,-480.0,0.00016628,2]
[382627697,1756685457077,-480.0,0.00016628,2]
[382627698,1756685457086,-480.0,0.00016628,2]
[382627699,1756685457096,-480.0,0.00016628,2]
[382627700,1756685457105,-844.48,0.00016628,2]
[382627701,1756685457118,-480.0,0.00016628,2]
[382627702,1756685457129,-480.0,0.00016628,2]
[382627703,1756685457138,-848.07,0.00016628,2]
[382627704,1756685457148,-480.0,0.00016628,2]
[382627705,1756685457159,-480.0,0.00016628,2]
[382627706,1756685457169,-1222.65,0.00016628,2]
[382627707,1756685457179,-480.0,0.00016628,2]
[382627708,1756685457190,-580.21,0.00016628,2]
[382627709,1756685457200,-480.0,0.00016628,2]
[382627710,1756685457210,-480.0,0.00016628,2]
[382627711,1756685457219,-480.0,0.00016628,2]
[382627712,1756685457229,-480.0,0.00016628,2]
[382627713,1756685457237,-480.0,0.00016628,2]
[382627714,1756685457246,-1232.5,0.00016628,2]
[382627715,1756685457255,-480.0,0.00016628,2]
[382627716,1756685457264,-480.0,0.00016628,2]
[382627717,1756685457273,-480.0,0.00016628,2]
[382627718,1756685457283,-1161.79,0.00016628,2]
[382627719,1756685457292,-480.0,0.00016628,2]
[382627720,1756685457302,-480.0,0.00016628,2]
[382627721,1756685457311,-517.46,0.00016628,2]
[382627722,1756685457321,-240.98376815,0.00016628,2]
[382627723,1756685457330,-480.0,0.00016628,2]
[382627724,1756685457340,-480.0,0.00016628,2]
[382627725,1756685457350,-480.0,0.00016628,2]
[382627726,1756685457359,-480.0,0.00016628,2]
[382627727,1756685457369,-480.0,0.00016628,2]
[382627728,1756685457378,-764.44,0.00016628,2]
[382627729,1756685457388,-602.25,0.00016628,2]
[382627730,1756685457397,-480.0,0.00016628,2]
[382627731,1756685457408,-591.27,0.00016628,2]
[382627732,1756685457417,-480.0,0.00016628,2]
[382627733,1756685457426,-480.0,0.00016628,2]
[382627734,1756685457435,-480.0,0.00016628,2]
[382627735,1756685457444,-480.0,0.00016628,2]
[382627736,1756685457454,-480.0,0.00016628,2]
[382627737,1756685457463,-480.0,0.00016628,2]
[382627738,1756685457472,-480.0,0.00016628,2]
[382627739,1756685457482,-480.0,0.00016628,2]
[382627740,1756685457491,-564.25,0.00016628,2]
[382627741,1756685457500,-503.14,0.00016628,2]
[382627742,1756685457510,-561.85,0.00016628,2]
[382627743,1756685457519,-480.0,0.00016628,2]
[382627744,1756685457528,-480.0,0.00016628,2]
[382627745,1756685457538,-480.0,0.00016628,2]
[382627746,1756685457547,-1251.24,0.00016628,2]
[382627747,1756685457556,-480.0,0.00016628,2]
[382627748,1756685457566,-480.0,0.00016628,2]
[382627749,1756685457576,-480.0,0.00016628,2]
[382627750,1756685457585,-528.9,0.00016628,2]
[382627751,1756685457595,-722.01,0.00016628,2]
[382627752,1756685457604,-480.0,0.00016628,2]
[382627753,1756685457614,-480.0,0.00016628,2]
[382627754,1756685457624,-480.0,0.00016628,2]
[382627755,1756685457633,-613.36,0.00016628,2]
[382627756,1756685457642,-1180.51,0.00016628,2]
[382627757,1756685457652,-480.0,0.00016628,2]
[382627758,1756685457661,-480.0,0.00016628,2]
[382627759,1756685457672,-1255.54,0.00016628,2]
[382627760,1756685457681,-1235.7,0.00016628,2]
[382627761,1756685457691,-480.0,0.00016628,2]
[382627762,1756685457700,-480.0,0.00016628,2]
[382627763,1756685457710,-480.0,0.00016628,2]
[382627764,1756685457721,-480.0,0.00016628,2]
[382627765,1756685457730,-480.0,0.00016628,2]
[382627766,1756685457740,-647.81,0.00016628,2]
[382627767,1756685457752,-258.17961623,0.00016628,2]
[382627768,1756685457768,-480.0,0.00016628,2]
[382627769,1756685457778,-480.0,0.00016628,2]
[382627770,1756685457789,-480.0,0.00016629,2]
[382627771,1756685457799,-480.0,0.00016629,2]
[382627772,1756685457811,-480.0,0.00016629,2]
[382627773,1756685457828,-480.0,0.00016629,2]
[382627774,1756685457837,-1796.04,0.00016629,2]
[382627775,1756685457847,-1120.17,0.00016629,2]
[382627776,1756685457858,-548.04,0.00016629,2]
[382627777,1756685457868,-676.86,0.00016629,2]
[382627778,1756685457878,-480.0,0.00016629,2]
[382627779,1756685457888,-1341.02,0.00016629,2]
[382627780,1756685457898,-728.5,0.00016629,2]
[382627781,1756685457908,-1269.83,0.00016629,2]
[382627782,1756685457918,-480.0,0.00016629,2]
[382627783,1756685457928,-884.44,0.00016629,2]
[382627784,1756685457937,-639.02,0.00016629,2]